[Event "*** SCC Grand Prix: Titled Tuesday Blitz"]
[Site "Chess.com"]
[Date "2020.10.06"]
[Round "5"]
[White "GustavoJuarezF"]
[Black "Arfan48"]
[Result "0-1"]
[WhiteElo "2034"]
[BlackElo "2213"]
[TimeControl "180+1"]
[EndTime "10:55:40 PDT"]
[Termination "Arfan48 won on time"]

1. e4 {[%clk 0:02:59.4]} 1... d5 {[%clk 0:02:56.3]} 2. exd5 {[%clk 0:02:57.3]}
2... Qxd5 {[%clk 0:02:57.2]} 3. Nc3 {[%clk 0:02:55.9]} 3... Qd6 {[%clk
0:02:57.6]} 4. d4 {[%clk 0:02:53.2]} 4... g6 {[%clk 0:02:57.1]} 5. g3 {[%clk
0:02:52.9]} 5... Bg7 {[%clk 0:02:57.3]} 6. Nf3 {[%clk 0:02:33.7]} 6... Nf6
{[%clk 0:02:50.9]} 7. Bg2 {[%clk 0:02:31.2]} 7... O-O {[%clk 0:02:50.8]} 8. O-O
{[%clk 0:02:30.8]} 8... c6 {[%clk 0:02:49.9]} 9. Bf4 {[%clk 0:02:30.2]} 9... Qd8
{[%clk 0:02:49.8]} 10. Re1 {[%clk 0:02:26.4]} 10... Nbd7 {[%clk 0:02:50.1]} 11.
Qe2 {[%clk 0:02:20.5]} 11... Re8 {[%clk 0:02:49.9]} 12. Rad1 {[%clk 0:02:19]}
12... Nb6 {[%clk 0:02:49.9]} 13. Ne5 {[%clk 0:02:13.2]} 13... Be6 {[%clk
0:02:49.2]} 14. b3 {[%clk 0:02:05.9]} 14... Rc8 {[%clk 0:02:34.9]} 15. Ne4
{[%clk 0:02:02.2]} 15... Nbd5 {[%clk 0:02:32.6]} 16. Bd2 {[%clk 0:01:43.9]}
16... Nxe4 {[%clk 0:02:31.7]} 17. Qxe4 {[%clk 0:01:42.1]} 17... Nf6 {[%clk
0:02:32.3]} 18. Qe3 {[%clk 0:01:31.4]} 18... Qb6 {[%clk 0:02:21.4]} 19. c3
{[%clk 0:01:30]} 19... Rcd8 {[%clk 0:02:18.2]} 20. Bc1 {[%clk 0:01:20.2]} 20...
Qa5 {[%clk 0:02:12.6]} 21. Re2 {[%clk 0:01:02]} 21... Nd5 {[%clk 0:02:12.4]} 22.
Qd2 {[%clk 0:00:51.6]} 22... Qxc3 {[%clk 0:02:04.3]} 23. Bb2 {[%clk 0:00:49.3]}
23... Qxd2 {[%clk 0:02:04]} 24. Rexd2 {[%clk 0:00:44.9]} 24... Nb6 {[%clk
0:02:02.6]} 25. h3 {[%clk 0:00:39.4]} 25... Bd5 {[%clk 0:02:02.4]} 26. Ba3
{[%clk 0:00:30]} 26... Bxg2 {[%clk 0:02:00.2]} 27. Kxg2 {[%clk 0:00:28.3]} 27...
Nd5 {[%clk 0:02:00.1]} 28. Bc5 {[%clk 0:00:24.7]} 28... Bxe5 {[%clk 0:01:52.8]}
29. dxe5 {[%clk 0:00:22.5]} 29... b6 {[%clk 0:01:53.3]} 30. Bd4 {[%clk
0:00:20.6]} 30... e6 {[%clk 0:01:53.2]} 31. Bb2 {[%clk 0:00:18.3]} 31... Rd7
{[%clk 0:01:53.2]} 32. a3 {[%clk 0:00:16.6]} 32... Red8 {[%clk 0:01:53.1]} 33.
Kf3 {[%clk 0:00:13.1]} 33... Kf8 {[%clk 0:01:52.5]} 34. Ke4 {[%clk 0:00:12]}
34... Nf6+ {[%clk 0:01:50.2]} 35. Ke3 {[%clk 0:00:09.8]} 35... Rxd2 {[%clk
0:01:50.1]} 36. Rxd2 {[%clk 0:00:09]} 36... Nd5+ {[%clk 0:01:50.6]} 37. Ke2
{[%clk 0:00:05.2]} 37... Ke7 {[%clk 0:01:50.4]} 38. f4 {[%clk 0:00:05]} 38... h6
{[%clk 0:01:49.1]} 39. b4 {[%clk 0:00:01.4]} 39... c5 {[%clk 0:01:45.5]} 0-1

[Event "*** SCC Grand Prix: Titled Tuesday Blitz"]
[Site "Chess.com"]
[Date "2020.10.06"]
[Round "5"]
[White "Th3_Hound"]
[Black "CrazyMartian"]
[Result "1-0"]
[WhiteElo "2488"]
[BlackElo "2275"]
[TimeControl "180+1"]
[EndTime "10:55:41 PDT"]
[Termination "Th3_Hound won by resignation"]

1. e4 {[%clk 0:03:00.9]} 1... c5 {[%clk 0:02:59.1]} 2. Nf3 {[%clk 0:02:58.2]}
2... d6 {[%clk 0:02:57.8]} 3. d4 {[%clk 0:02:55.9]} 3... cxd4 {[%clk 0:02:57.9]}
4. Nxd4 {[%clk 0:02:56.1]} 4... Nf6 {[%clk 0:02:58.4]} 5. Nc3 {[%clk 0:02:49.6]}
5... a6 {[%clk 0:02:58.5]} 6. Be2 {[%clk 0:02:46.7]} 6... e5 {[%clk 0:02:58.2]}
7. Nf3 {[%clk 0:02:44.9]} 7... Be7 {[%clk 0:02:58.5]} 8. Bg5 {[%clk 0:02:43.1]}
8... Be6 {[%clk 0:02:57.2]} 9. Bxf6 {[%clk 0:02:42.1]} 9... Bxf6 {[%clk
0:02:58.1]} 10. Nd5 {[%clk 0:02:37]} 10... Nd7 {[%clk 0:02:56.8]} 11. O-O {[%clk
0:02:35.2]} 11... Be7 {[%clk 0:02:54.7]} 12. Bc4 {[%clk 0:02:32]} 12... Nf6
{[%clk 0:02:53.5]} 13. Nxf6+ {[%clk 0:02:30.2]} 13... Bxf6 {[%clk 0:02:52.8]}
14. Bd5 {[%clk 0:02:31.1]} 14... Qc7 {[%clk 0:02:31.1]} 15. c3 {[%clk
0:02:29.5]} 15... O-O {[%clk 0:02:30.2]} 16. Qb3 {[%clk 0:02:25.6]} 16... Bc8
{[%clk 0:01:20.3]} 17. Rad1 {[%clk 0:02:11.1]} 17... Rb8 {[%clk 0:01:20.1]} 18.
h3 {[%clk 0:02:09.2]} 18... Bd7 {[%clk 0:00:54.6]} 19. Rd2 {[%clk 0:02:02.3]}
19... Be7 {[%clk 0:00:49.4]} 20. Rfd1 {[%clk 0:02:00]} 20... Bc6 {[%clk
0:00:47.9]} 21. Nh2 {[%clk 0:01:55.8]} 21... Bg5 {[%clk 0:00:45.8]} 22. Rd3
{[%clk 0:01:51.7]} 22... Be7 {[%clk 0:00:40]} 23. Nf1 {[%clk 0:01:47.5]} 23...
Bg5 {[%clk 0:00:34.5]} 24. Qc2 {[%clk 0:01:43.5]} 24... Rfd8 {[%clk 0:00:29.5]}
25. Rg3 {[%clk 0:01:31.9]} 25... Bh6 {[%clk 0:00:25.1]} 26. Qe2 {[%clk
0:01:29.5]} 26... Qe7 {[%clk 0:00:23.2]} 27. Qh5 {[%clk 0:01:24.8]} 27... Bxd5
{[%clk 0:00:16.1]} 28. Qxh6 {[%clk 0:01:20.1]} 1-0

[Event "*** SCC Grand Prix: Titled Tuesday Blitz"]
[Site "Chess.com"]
[Date "2020.10.06"]
[Round "5"]
[White "Zq1"]
[Black "ferdipy"]
[Result "1-0"]
[WhiteElo "2526"]
[BlackElo "2374"]
[TimeControl "180+1"]
[EndTime "10:55:45 PDT"]
[Termination "Zq1 won by checkmate"]

1. d4 {[%clk 0:03:00.9]} 1... e5 {[%clk 0:02:58.4]} 2. dxe5 {[%clk 0:03:00.1]}
2... d6 {[%clk 0:02:58.3]} 3. exd6 {[%clk 0:02:59.6]} 3... Bxd6 {[%clk
0:02:59.2]} 4. Nf3 {[%clk 0:02:59.4]} 4... Nc6 {[%clk 0:02:57.6]} 5. g3 {[%clk
0:02:56.2]} 5... Bg4 {[%clk 0:02:56.7]} 6. Bg2 {[%clk 0:02:56.1]} 6... Qe7
{[%clk 0:02:56.8]} 7. c3 {[%clk 0:02:55.5]} 7... O-O-O {[%clk 0:02:57]} 8. Qa4
{[%clk 0:02:45.3]} 8... h5 {[%clk 0:02:55.2]} 9. Be3 {[%clk 0:02:38.6]} 9... a6
{[%clk 0:02:53]} 10. b4 {[%clk 0:02:29.3]} 10... Nf6 {[%clk 0:02:44.1]} 11. b5
{[%clk 0:02:18]} 11... axb5 {[%clk 0:02:43.5]} 12. Qa8+ {[%clk 0:02:15.7]} 12...
Nb8 {[%clk 0:02:36.6]} 13. O-O {[%clk 0:01:40.7]} 13... c6 {[%clk 0:02:15.4]}
14. a4 {[%clk 0:01:38.6]} 14... bxa4 {[%clk 0:02:15]} 15. Rxa4 {[%clk
0:01:36.7]} 15... Nd5 {[%clk 0:02:15.4]} 16. Ba7 {[%clk 0:01:25.3]} 16... Qxe2
{[%clk 0:02:10.9]} 17. Nd4 {[%clk 0:01:20.2]} 17... Qe7 {[%clk 0:01:53.8]} 18.
Na3 {[%clk 0:01:13.8]} 18... Nxc3 {[%clk 0:01:52.2]} 19. Rc4 {[%clk 0:01:06.8]}
19... Ne2+ {[%clk 0:01:25.4]} 20. Nxe2 {[%clk 0:01:02.3]} 20... Bxe2 {[%clk
0:01:07.4]} 21. Bh3+ {[%clk 0:00:58.2]} 21... Bg4 {[%clk 0:01:06.2]} 22. Rxg4
{[%clk 0:00:57.1]} 22... hxg4 {[%clk 0:01:07.1]} 23. Bxg4+ {[%clk 0:00:57.3]}
23... Kc7 {[%clk 0:01:04.6]} 24. Rb1 {[%clk 0:00:49.1]} 24... Bxa3 {[%clk
0:00:34.2]} 25. Bb6+ {[%clk 0:00:48.3]} 25... Kd6 {[%clk 0:00:29.9]} 26. Qxa3+
{[%clk 0:00:48.2]} 26... c5 {[%clk 0:00:24.2]} 27. Qxc5# {[%clk 0:00:47.8]} 1-0

[Event "*** SCC Grand Prix: Titled Tuesday Blitz"]
[Site "Chess.com"]
[Date "2020.10.06"]
[Round "5"]
[White "Sven_Tica"]
[Black "TimofeevAr"]
[Result "0-1"]
[WhiteElo "2646"]
[BlackElo "2844"]
[TimeControl "180+1"]
[EndTime "10:55:46 PDT"]
[Termination "TimofeevAr won by resignation"]

1. d4 {[%clk 0:03:00.9]} 1... d5 {[%clk 0:02:58.3]} 2. c4 {[%clk 0:03:00.7]}
2... dxc4 {[%clk 0:02:58.6]} 3. Nf3 {[%clk 0:03:00.9]} 3... Nf6 {[%clk 0:02:58]}
4. e3 {[%clk 0:03:01.4]} 4... e6 {[%clk 0:02:58.3]} 5. Bxc4 {[%clk 0:03:01.5]}
5... c5 {[%clk 0:02:58.6]} 6. O-O {[%clk 0:03:01.7]} 6... a6 {[%clk 0:02:58.9]}
7. b3 {[%clk 0:02:58.8]} 7... cxd4 {[%clk 0:02:55.4]} 8. Nxd4 {[%clk 0:02:58.4]}
8... Bd6 {[%clk 0:02:55.4]} 9. Bb2 {[%clk 0:02:57.6]} 9... O-O {[%clk
0:02:55.4]} 10. Nd2 {[%clk 0:02:56.6]} 10... Qe7 {[%clk 0:02:54.2]} 11. Qe2
{[%clk 0:02:46.1]} 11... e5 {[%clk 0:02:53.2]} 12. N4f3 {[%clk 0:02:41.3]} 12...
Bg4 {[%clk 0:02:52.1]} 13. h3 {[%clk 0:02:34.9]} 13... Bh5 {[%clk 0:02:52.1]}
14. g4 {[%clk 0:02:31.9]} 14... Bg6 {[%clk 0:02:51.9]} 15. Nh4 {[%clk
0:02:32.5]} 15... Nc6 {[%clk 0:02:42.4]} 16. Nxg6 {[%clk 0:02:27.2]} 16... hxg6
{[%clk 0:02:42]} 17. g5 {[%clk 0:02:18.7]} 17... Nd7 {[%clk 0:02:38.5]} 18. Qg4
{[%clk 0:01:58.3]} 18... Nc5 {[%clk 0:02:28.7]} 19. Rad1 {[%clk 0:01:54.6]}
19... e4 {[%clk 0:02:25.7]} 20. Bd5 {[%clk 0:01:19.3]} 20... Ne5 {[%clk
0:02:25.1]} 21. Qg2 {[%clk 0:01:18.7]} 21... Ncd3 {[%clk 0:01:51.9]} 22. Bd4
{[%clk 0:01:13.4]} 22... Rad8 {[%clk 0:01:40.3]} 23. Nxe4 {[%clk 0:01:09.6]}
23... Bb8 {[%clk 0:01:35.3]} 24. Bxb7 {[%clk 0:01:08.5]} 24... Rxd4 {[%clk
0:01:26.5]} 25. Bxa6 {[%clk 0:00:50.7]} 25... Rdd8 {[%clk 0:01:17.8]} 26. f4
{[%clk 0:00:50.5]} 26... Nb4 {[%clk 0:01:15]} 27. Be2 {[%clk 0:00:45.1]} 27...
Nec6 {[%clk 0:01:08.8]} 28. Bc4 {[%clk 0:00:44.4]} 28... Na5 {[%clk 0:01:05.4]}
29. Be2 {[%clk 0:00:38.2]} 29... Ba7 {[%clk 0:01:01.4]} 30. Qf3 {[%clk
0:00:36.7]} 30... Nc2 {[%clk 0:00:59.5]} 31. Kh2 {[%clk 0:00:29.3]} 31... Nxe3
{[%clk 0:00:57.9]} 0-1

[Event "*** SCC Grand Prix: Titled Tuesday Blitz"]
[Site "Chess.com"]
[Date "2020.10.06"]
[Round "5"]
[White "DishonorOnYourCow"]
[Black "OhanyanEminChess"]
[Result "0-1"]
[WhiteElo "2407"]
[BlackElo "2577"]
[TimeControl "180+1"]
[EndTime "10:55:49 PDT"]
[Termination "OhanyanEminChess won by resignation"]

1. d4 {[%clk 0:03:00.9]} 1... Nf6 {[%clk 0:02:59.2]} 2. c4 {[%clk 0:03:01]} 2...
c5 {[%clk 0:02:59.3]} 3. d5 {[%clk 0:03:00.9]} 3... b5 {[%clk 0:02:59.5]} 4.
cxb5 {[%clk 0:03:00.9]} 4... a6 {[%clk 0:02:59.8]} 5. bxa6 {[%clk 0:03:01.8]}
5... g6 {[%clk 0:02:59.8]} 6. Nc3 {[%clk 0:03:01.6]} 6... Bg7 {[%clk 0:02:59.4]}
7. a7 {[%clk 0:02:59.7]} 7... Rxa7 {[%clk 0:02:58.8]} 8. e4 {[%clk 0:02:59.5]}
8... O-O {[%clk 0:02:58.4]} 9. Nf3 {[%clk 0:02:59.5]} 9... d6 {[%clk 0:02:57.3]}
10. Be2 {[%clk 0:02:58.1]} 10... Qa5 {[%clk 0:02:55.5]} 11. O-O {[%clk
0:02:57.7]} 11... Ba6 {[%clk 0:02:55.5]} 12. a4 {[%clk 0:02:46.9]} 12... Nbd7
{[%clk 0:02:53]} 13. Nd2 {[%clk 0:02:20.9]} 13... Ne5 {[%clk 0:02:49.1]} 14. f4
{[%clk 0:02:11.3]} 14... Nd3 {[%clk 0:02:47.1]} 15. Nb3 {[%clk 0:02:07.4]} 15...
Qb4 {[%clk 0:02:41.9]} 16. Bxd3 {[%clk 0:01:35.3]} 16... Bxd3 {[%clk 0:02:40.4]}
17. Qxd3 {[%clk 0:01:36.2]} 17... Qxb3 {[%clk 0:02:39.7]} 18. Qb5 {[%clk
0:01:13.9]} 18... Rb8 {[%clk 0:02:32.2]} 19. Qxb3 {[%clk 0:01:09.6]} 19... Rxb3
{[%clk 0:02:33.1]} 20. e5 {[%clk 0:00:52.4]} 20... Nd7 {[%clk 0:02:25.4]} 21.
Be3 {[%clk 0:00:41.9]} 21... Rxb2 {[%clk 0:02:15.3]} 22. Nb5 {[%clk 0:00:34.5]}
22... Ra6 {[%clk 0:02:13.6]} 23. exd6 {[%clk 0:00:17.3]} 23... exd6 {[%clk
0:01:51.5]} 24. Rac1 {[%clk 0:00:17.5]} 24... Rxa4 {[%clk 0:01:44.4]} 25. Nxd6
{[%clk 0:00:17.4]} 25... Bd4 {[%clk 0:01:45.1]} 26. Bxd4 {[%clk 0:00:16.8]}
26... Rxd4 {[%clk 0:01:46]} 27. Rce1 {[%clk 0:00:14.2]} 27... Rxd5 {[%clk
0:01:44.6]} 28. Nc8 {[%clk 0:00:12.6]} 28... Kg7 {[%clk 0:01:41.9]} 29. Re7
{[%clk 0:00:10.9]} 29... Rdd2 {[%clk 0:01:41.8]} 30. Rfe1 {[%clk 0:00:06.5]}
30... Rxg2+ {[%clk 0:01:41.2]} 31. Kh1 {[%clk 0:00:06.9]} 31... Rxh2+ {[%clk
0:01:41.7]} 32. Kg1 {[%clk 0:00:07.3]} 32... Rbg2+ {[%clk 0:01:41.8]} 33. Kf1
{[%clk 0:00:07.2]} 33... Nf6 {[%clk 0:01:42.7]} 34. Nd6 {[%clk 0:00:06.3]} 34...
Nh5 {[%clk 0:01:38.9]} 35. Rxf7+ {[%clk 0:00:05.4]} 35... Kh6 {[%clk 0:01:39.2]}
36. Nf5+ {[%clk 0:00:04.3]} 36... gxf5 {[%clk 0:01:37.3]} 37. Re6+ {[%clk
0:00:04.2]} 37... Rg6 {[%clk 0:01:38]} 38. Rxg6+ {[%clk 0:00:03.4]} 38... hxg6
{[%clk 0:01:38.9]} 39. Rc7 {[%clk 0:00:04]} 39... Nxf4 {[%clk 0:01:37.4]} 0-1

[Event "*** SCC Grand Prix: Titled Tuesday Blitz"]
[Site "Chess.com"]
[Date "2020.10.06"]
[Round "5"]
[White "annamaja"]
[Black "MashaFromRussia"]
[Result "0-1"]
[WhiteElo "2255"]
[BlackElo "2411"]
[TimeControl "180+1"]
[EndTime "10:55:49 PDT"]
[Termination "MashaFromRussia won by checkmate"]

1. e4 {[%clk 0:03:00.9]} 1... c5 {[%clk 0:03:00]} 2. Nf3 {[%clk 0:03:01]} 2...
Nc6 {[%clk 0:03:00.3]} 3. d4 {[%clk 0:03:01.7]} 3... cxd4 {[%clk 0:03:01.1]} 4.
Nxd4 {[%clk 0:03:02.6]} 4... Nf6 {[%clk 0:03:01.6]} 5. Nc3 {[%clk 0:03:03]} 5...
e5 {[%clk 0:03:02.1]} 6. Ndb5 {[%clk 0:03:03.3]} 6... d6 {[%clk 0:03:02.6]} 7.
Bg5 {[%clk 0:03:00.5]} 7... a6 {[%clk 0:03:02.5]} 8. Na3 {[%clk 0:03:01.2]} 8...
b5 {[%clk 0:03:02.8]} 9. Nd5 {[%clk 0:03:01.9]} 9... Be7 {[%clk 0:03:03.1]} 10.
Bxf6 {[%clk 0:03:02]} 10... Bxf6 {[%clk 0:03:04]} 11. c3 {[%clk 0:03:01.7]}
11... O-O {[%clk 0:03:04.4]} 12. Nc2 {[%clk 0:03:00.9]} 12... Bg5 {[%clk
0:03:04.6]} 13. h4 {[%clk 0:03:00.6]} 13... Bh6 {[%clk 0:03:04.2]} 14. Be2
{[%clk 0:03:00.3]} 14... Be6 {[%clk 0:03:02.6]} 15. Nce3 {[%clk 0:02:49.2]}
15... Ne7 {[%clk 0:03:00]} 16. Nxe7+ {[%clk 0:02:30.1]} 16... Qxe7 {[%clk
0:03:00.9]} 17. Nd5 {[%clk 0:02:30.5]} 17... Qb7 {[%clk 0:03:00.4]} 18. g4
{[%clk 0:02:17.7]} 18... Bxd5 {[%clk 0:02:59.8]} 19. Qxd5 {[%clk 0:02:05]} 19...
Qxd5 {[%clk 0:02:58.6]} 20. exd5 {[%clk 0:02:05.9]} 20... Bf4 {[%clk 0:02:58.8]}
21. a4 {[%clk 0:02:02.8]} 21... bxa4 {[%clk 0:02:52.6]} 22. Rxa4 {[%clk
0:02:02.7]} 22... a5 {[%clk 0:02:53.5]} 23. O-O {[%clk 0:01:57.7]} 23... Rfb8
{[%clk 0:02:52.9]} 24. Ra2 {[%clk 0:01:54.5]} 24... g6 {[%clk 0:02:49.2]} 25.
Rfa1 {[%clk 0:01:53.6]} 25... Kg7 {[%clk 0:02:48.5]} 26. Bc4 {[%clk 0:01:53.7]}
26... h5 {[%clk 0:02:32.6]} 27. gxh5 {[%clk 0:01:53.1]} 27... gxh5 {[%clk
0:02:33.5]} 28. b3 {[%clk 0:01:40.1]} 28... e4 {[%clk 0:02:32]} 29. Rxa5 {[%clk
0:01:28]} 29... Rxa5 {[%clk 0:02:32.9]} 30. Rxa5 {[%clk 0:01:28.8]} 30... Kf6
{[%clk 0:02:29.9]} 31. b4 {[%clk 0:01:11.1]} 31... Bd2 {[%clk 0:02:27.6]} 32.
Ra3 {[%clk 0:00:54.2]} 32... Ke5 {[%clk 0:02:26.6]} 33. Be2 {[%clk 0:00:46.3]}
33... f5 {[%clk 0:02:20.5]} 34. b5 {[%clk 0:00:39.9]} 34... f4 {[%clk
0:02:13.3]} 35. Bxh5 {[%clk 0:00:37.5]} 35... Rxb5 {[%clk 0:02:09.6]} 36. Bf7
{[%clk 0:00:24.6]} 36... Rb1+ {[%clk 0:02:06.1]} 37. Kh2 {[%clk 0:00:19.5]}
37... f3 {[%clk 0:02:05.2]} 38. h5 {[%clk 0:00:09.9]} 38... Kf4 {[%clk
0:01:40.4]} 39. c4 {[%clk 0:00:07.9]} 39... Kg4 {[%clk 0:01:37.9]} 40. h6 {[%clk
0:00:08]} 40... Bf4# {[%clk 0:01:37.2]} 0-1

[Event "*** SCC Grand Prix: Titled Tuesday Blitz"]
[Site "Chess.com"]
[Date "2020.10.06"]
[Round "5"]
[White "MrChampion_Coach"]
[Black "Alexandercs432"]
[Result "1-0"]
[WhiteElo "2390"]
[BlackElo "2148"]
[TimeControl "180+1"]
[EndTime "10:55:51 PDT"]
[Termination "MrChampion_Coach won by resignation"]

1. d4 {[%clk 0:03:00.9]} 1... d5 {[%clk 0:03:00.2]} 2. c4 {[%clk 0:03:00.6]}
2... dxc4 {[%clk 0:03:01]} 3. e4 {[%clk 0:02:59.6]} 3... e5 {[%clk 0:03:00.6]}
4. Nf3 {[%clk 0:02:57.4]} 4... exd4 {[%clk 0:03:00.8]} 5. Qxd4 {[%clk
0:02:56.4]} 5... Qxd4 {[%clk 0:02:59.6]} 6. Nxd4 {[%clk 0:02:57.3]} 6... Nf6
{[%clk 0:02:45.9]} 7. Nc3 {[%clk 0:02:56.5]} 7... Bc5 {[%clk 0:02:40]} 8. Ndb5
{[%clk 0:02:55.4]} 8... Na6 {[%clk 0:02:31.3]} 9. Bf4 {[%clk 0:02:44.8]} 9... c6
{[%clk 0:01:59.1]} 10. Nd6+ {[%clk 0:02:44.3]} 10... Ke7 {[%clk 0:01:32.4]} 11.
Nxc4 {[%clk 0:02:23.9]} 11... Re8 {[%clk 0:00:53]} 12. f3 {[%clk 0:02:21.8]}
12... Kf8 {[%clk 0:00:45.9]} 13. Nd6 {[%clk 0:02:11.3]} 13... Nb4 {[%clk
0:00:21.6]} 14. O-O-O {[%clk 0:02:08.5]} 14... Rd8 {[%clk 0:00:16.9]} 15. a3
{[%clk 0:02:07.9]} 15... Na6 {[%clk 0:00:12.1]} 16. Bxa6 {[%clk 0:02:07.5]}
16... bxa6 {[%clk 0:00:11.5]} 17. Na4 {[%clk 0:02:08.4]} 17... Bb6 {[%clk
0:00:08.4]} 18. Nc4 {[%clk 0:01:50.7]} 18... Be6 {[%clk 0:00:05.1]} 19. Ncxb6
{[%clk 0:01:48.9]} 19... axb6 {[%clk 0:00:05.7]} 20. Nxb6 {[%clk 0:01:48.5]}
20... Rab8 {[%clk 0:00:05.5]} 21. Bxb8 {[%clk 0:01:48.1]} 21... Rxb8 {[%clk
0:00:06.3]} 22. Na4 {[%clk 0:01:45.9]} 22... Rc8 {[%clk 0:00:06]} 23. Nc5 {[%clk
0:01:45.6]} 23... Ke7 {[%clk 0:00:04.5]} 24. g4 {[%clk 0:01:44.4]} 24... h6
{[%clk 0:00:03.9]} 25. h4 {[%clk 0:01:44.1]} 25... g6 {[%clk 0:00:03.4]} 26. Rd4
{[%clk 0:01:42.5]} 26... Rb8 {[%clk 0:00:02.7]} 27. b4 {[%clk 0:01:41.5]} 27...
a5 {[%clk 0:00:02.1]} 28. Rhd1 {[%clk 0:01:37.1]} 28... axb4 {[%clk 0:00:01.8]}
29. Rxb4 {[%clk 0:01:38]} 29... Ra8 {[%clk 0:00:01.8]} 30. Rd3 {[%clk
0:01:37.9]} 30... Rd8 {[%clk 0:00:02.6]} 31. Rxd8 {[%clk 0:01:36.9]} 31... Kxd8
{[%clk 0:00:03.5]} 32. Rb7 {[%clk 0:01:35.5]} 32... Ke8 {[%clk 0:00:03.3]} 33.
a4 {[%clk 0:01:34.7]} 33... Bc4 {[%clk 0:00:01.9]} 34. a5 {[%clk 0:01:34.1]}
34... Bb5 {[%clk 0:00:01.7]} 35. Rxb5 {[%clk 0:01:31.6]} 35... cxb5 {[%clk
0:00:02.6]} 36. a6 {[%clk 0:01:32.1]} 36... Nd7 {[%clk 0:00:02]} 37. Nxd7 {[%clk
0:01:31.6]} 37... Kxd7 {[%clk 0:00:02.9]} 38. a7 {[%clk 0:01:32.5]} 38... Kc7
{[%clk 0:00:03.1]} 39. a8=Q {[%clk 0:01:32.3]} 1-0

[Event "*** SCC Grand Prix: Titled Tuesday Blitz"]
[Site "Chess.com"]
[Date "2020.10.06"]
[Round "5"]
[White "AlexSuv"]
[Black "serena-maria"]
[Result "1-0"]
[WhiteElo "2498"]
[BlackElo "2278"]
[TimeControl "180+1"]
[EndTime "10:55:54 PDT"]
[Termination "AlexSuv won by resignation"]

1. d4 {[%clk 0:03:00.9]} 1... Nf6 {[%clk 0:03:00]} 2. c4 {[%clk 0:03:00.6]} 2...
g6 {[%clk 0:03:00.2]} 3. Nc3 {[%clk 0:03:00.3]} 3... d5 {[%clk 0:03:00.4]} 4.
Nf3 {[%clk 0:03:00.1]} 4... Bg7 {[%clk 0:02:59.5]} 5. Qb3 {[%clk 0:03:00.2]}
5... dxc4 {[%clk 0:02:58.6]} 6. Qxc4 {[%clk 0:03:00.8]} 6... O-O {[%clk
0:02:59.5]} 7. e4 {[%clk 0:03:00.4]} 7... a6 {[%clk 0:02:58]} 8. Be2 {[%clk
0:02:59.7]} 8... b5 {[%clk 0:02:57.2]} 9. Qb3 {[%clk 0:03:00.2]} 9... Bb7 {[%clk
0:02:55.1]} 10. e5 {[%clk 0:02:58.1]} 10... Nd5 {[%clk 0:02:53.2]} 11. O-O
{[%clk 0:02:58.5]} 11... Nxc3 {[%clk 0:02:02.7]} 12. Qxc3 {[%clk 0:02:57.9]}
12... Nd7 {[%clk 0:02:01.6]} 13. Bf4 {[%clk 0:02:57.7]} 13... Nb6 {[%clk
0:02:00.1]} 14. Qd2 {[%clk 0:02:57.4]} 14... Nc4 {[%clk 0:01:57.2]} 15. Qc1
{[%clk 0:02:51.8]} 15... Rc8 {[%clk 0:01:46.2]} 16. b3 {[%clk 0:02:50.7]} 16...
Nb6 {[%clk 0:01:42]} 17. Rd1 {[%clk 0:02:51.1]} 17... Nd5 {[%clk 0:01:39.8]} 18.
Bh6 {[%clk 0:02:50.7]} 18... Nc3 {[%clk 0:01:14.9]} 19. Qxc3 {[%clk 0:02:49.5]}
19... Bxh6 {[%clk 0:01:14.3]} 20. a4 {[%clk 0:02:50]} 20... c6 {[%clk
0:01:11.6]} 21. b4 {[%clk 0:02:40.7]} 21... Qd5 {[%clk 0:01:06.1]} 22. a5 {[%clk
0:02:34.4]} 22... Rcd8 {[%clk 0:00:47.2]} 23. Ne1 {[%clk 0:02:33.9]} 23... c5
{[%clk 0:00:23.4]} 24. dxc5 {[%clk 0:02:26]} 24... Bd2 {[%clk 0:00:14.7]} 25.
Qb2 {[%clk 0:02:01.4]} 25... Rd7 {[%clk 0:00:11]} 26. Bf3 {[%clk 0:01:25.7]}
26... Qe6 {[%clk 0:00:03.5]} 27. Rxd2 {[%clk 0:01:24.4]} 27... Rxd2 {[%clk
0:00:01.2]} 28. Qxd2 {[%clk 0:01:24.7]} 28... Bxf3 {[%clk 0:00:01.4]} 29. Nxf3
{[%clk 0:01:25.3]} 29... Qc4 {[%clk 0:00:01.8]} 30. Rc1 {[%clk 0:01:23.8]} 30...
Qe4 {[%clk 0:00:02]} 31. c6 {[%clk 0:01:23.7]} 31... Rb8 {[%clk 0:00:01.3]} 32.
c7 {[%clk 0:01:24.4]} 32... Rc8 {[%clk 0:00:01.9]} 33. Qd8+ {[%clk 0:01:24.8]}
33... Rxd8 {[%clk 0:00:02.1]} 34. cxd8=Q+ {[%clk 0:01:25.1]} 34... Kg7 {[%clk
0:00:03]} 1-0